fUST/lending_fUST_20250527
["ID","MTS","AMOUNT","RATE_DAILY","PERIOD"]
[362455719,1748308234427,-430.0,0.00020821,2]
[362455720,1748308234436,-155.0,0.00020821,2]
[362455721,1748308234446,-469.99538968,0.00020821,2]
[362455722,1748308234455,-430.0,0.00020821,2]
[362455723,1748308234464,-430.0,0.00020821,2]
[362455724,1748308234474,-430.0,0.00020821,2]
[362455725,1748308234483,-467.42,0.00020821,2]
[362455726,1748308234493,-310.0,0.00020899,2]
[362455727,1748308234503,-571.36864157,0.000209,4]
[362455728,1748308234512,-151.0,0.00020969,2]
[362455729,1748308234522,-500.0,0.00020997,2]
[362455730,1748308234531,-500.0,0.00020997,2]
[362455731,1748308234541,-500.0,0.00020997,2]
[362455732,1748308234550,-500.0,0.00020997,2]
[362455733,1748308234560,-160.0,0.00021,4]
[362455734,1748308234569,-160.0,0.00021,5]
[362455735,1748308234579,-160.0,0.00021,5]
[362455736,1748308234588,-571.36864153,0.00021038,4]
[362455737,1748308234598,-1075.44581444,0.00021064,2]
[362455738,1748308234607,-357.159,0.00021089,2]
[362455739,1748308234618,-199.65,0.00021094,2]
[362455740,1748308234627,-151.0,0.00021094,2]
[362455741,1748308234637,-151.0,0.00021095,2]
[362455742,1748308234646,-430.0,0.00021095,2]
[362455743,1748308234656,-430.0,0.00021095,2]
[362455744,1748308234665,-430.0,0.00021095,2]
[362455745,1748308234675,-430.0,0.00021095,2]
[362455746,1748308234685,-430.0,0.00021095,2]
[362455747,1748308234695,-464.81,0.00021095,2]
[362455748,1748308234704,-430.0,0.00021095,2]
[362455749,1748308234713,-430.0,0.00021095,2]
[362455750,1748308234723,-430.0,0.00021095,2]
[362455751,1748308234732,-430.0,0.00021095,2]
[362455752,1748308234741,-430.0,0.00021095,2]
[362455753,1748308234751,-430.0,0.00021095,2]
[362455754,1748308234760,-430.0,0.00021095,2]
[362455755,1748308234770,-485.72,0.00021095,2]
[362455756,1748308234781,-467.42,0.00021095,2]
[362455757,1748308234791,-423.08503179,0.0002112,2]
[362455758,1748308234801,-160.0,0.0002112,2]
[362455759,1748308234811,-160.0,0.0002112,2]
[362455760,1748308234821,-160.0,0.0002112,2]
[362455761,1748308234830,-160.0,0.0002112,2]
[362455762,1748308234841,-160.0,0.0002112,2]
[362455763,1748308234850,-212.59253735,0.0002112,2]
[362455764,1748308234860,-160.0,0.0002112,2]
[362455765,1748308234870,-500.0,0.00021164,2]
[362455766,1748308234881,-700.0,0.00021164,2]
[362455767,1748308234890,-571.36864153,0.00021176,4]
[362455768,1748308234900,-587.0,0.00021289,2]
[362455769,1748308234913,-329.66,0.000213,2]
[362455770,1748308234922,-571.36864153,0.00021314,5]
[362455771,1748308234932,-151.0,0.00021368,2]
[362455772,1748308234943,-1084.069315,0.00021368,2]
[362455773,1748308234953,-1084.069315,0.00021368,2]
[362455774,1748308234963,-151.0,0.00021368,2]
[362455775,1748308234972,-489.0521,0.00021369,2]
[362455776,1748308234982,-217.641848,0.00021369,7]
[362455777,1748308234993,-267.174176,0.00021369,2]
[362455778,1748308235002,-235.92,0.00021369,2]
[362455779,1748308235012,-430.0,0.00021369,2]
[362455780,1748308235022,-430.0,0.00021369,2]
[362455781,1748308235031,-430.0,0.00021369,2]
[362455782,1748308235041,-464.81,0.00021369,2]
[362455783,1748308235051,-430.0,0.00021369,2]
[362455784,1748308235060,-430.0,0.00021369,2]
[362455785,1748308235070,-430.0,0.00021369,2]
[362455786,1748308235080,-430.0,0.00021369,2]
[362455787,1748308235089,-430.0,0.00021369,2]
[362455788,1748308235099,-430.0,0.00021369,2]
[362455789,1748308235109,-430.0,0.00021369,2]
[362455790,1748308235118,-467.42,0.00021369,2]
[362455791,1748308235129,-1800.93,0.00021398,2]
[362455792,1748308235139,-571.36864153,0.00021452,5]
[362455793,1748308235148,-1237.0,0.00021489,2]
[362455794,1748308235157,-1000.0,0.00021544,2]
[362455795,1748308235167,-1000.0,0.00021544,2]
[362455796,1748308235176,-507.30167474,0.00021544,2]
[362455797,1748308235185,-1000.0,0.00021544,2]
[362455798,1748308235195,-608.540147,0.0002156,3]
[362455799,1748308235204,-151.0,0.00021585,2]
[362455800,1748308235213,-4763.59928519,0.00021585,2]
[362455801,1748308235223,-2000.0,0.00021588,2]
[362455802,1748308235232,-571.36864153,0.0002159,5]
[362455803,1748308235241,-500.0,0.000216,2]
[362455804,1748308235250,-151.0,0.00021642,2]
[362455805,1748308235260,-1084.069315,0.00021642,2]
[362455806,1748308235269,-1084.069315,0.00021642,2]
[362455807,1748308235278,-220.7147,0.00021642,2]
[362455808,1748308235288,-430.0,0.00021643,2]
[362455809,1748308235299,-430.0,0.00021643,2]
[362455810,1748308235308,-430.0,0.00021643,2]
[362455811,1748308235317,-464.81,0.00021643,2]
[362455812,1748308235327,-430.0,0.00021643,2]
[362455813,1748308235337,-430.0,0.00021643,2]
[362455814,1748308235347,-430.0,0.00021643,2]
[362455815,1748308235356,-430.0,0.00021643,2]
[362455816,1748308235366,-430.0,0.00021643,2]
[362455817,1748308235375,-430.0,0.00021643,2]
[362455818,1748308235384,-467.42,0.00021643,2]
[362455819,1748308235394,-1075.44581441,0.00021723,2]
[362455820,1748308235403,-571.36864153,0.00021728,5]
[362455821,1748308235413,-3800.0,0.00021788,2]
[362455822,1748308235422,-571.36864153,0.00021866,6]
[362455823,1748308235432,-1456.42497001,0.000219,2]
[362455824,1748308235441,-500.0,0.00021917,2]
[362455825,1748308235451,-430.0,0.00021917,2]
[362455826,1748308235460,-430.0,0.00021917,2]
[362455827,1748308235470,-430.0,0.00021917,2]
[362455828,1748308235479,-464.81,0.00021917,2]
[362455829,1748308235489,-430.0,0.00021917,2]
[362455830,1748308235498,-430.0,0.00021917,2]
[362455831,1748308235509,-430.0,0.00021917,2]
[362455832,1748308235518,-430.0,0.00021917,2]
[362455833,1748308235527,-430.0,0.00021917,2]
[362455834,1748308235537,-430.0,0.00021917,2]
[362455835,1748308235549,-467.42,0.00021917,2]
[362455836,1748308235559,-1084.069315,0.00021926,2]
[362455837,1748308235568,-1084.069315,0.00021926,2]
[362455838,1748308235578,-500.0,0.00021973,2]
[362455839,1748308235588,-500.0,0.00021973,2]
[362455840,1748308235598,-500.0,0.00021973,2]
[362455841,1748308235607,-500.0,0.00021973,2]
[362455842,1748308235616,-500.0,0.00021973,2]
[362455843,1748308235625,-500.0,0.00021973,2]
[362455844,1748308235634,-500.0,0.00021973,2]
[362455845,1748308235644,-500.0,0.00021973,2]
[362455846,1748308235653,-3597.59586465,0.00022,3]
[362455847,1748308235663,-1607.1024383,0.00022,2]
[362455848,1748308235672,-98797.0477983,0.00022,2]
[362455849,1748308235681,-44370.39104452,0.00022,2]
[362455871,1748308238002,-384.12,0.00019452,2]
[362455873,1748308238011,-209.724718,0.00019452,2]
[362455875,1748308238020,-209.724718,0.00019452,2]
[362455877,1748308238031,-209.724718,0.00019452,2]
[362455879,1748308238040,-209.724718,0.00019452,2]
[362455881,1748308238050,-209.724718,0.00019726,2]
[362455883,1748308238060,-209.724718,0.00019726,2]
[362455885,1748308238069,-165.24554076,0.00019999,2]
[362455887,1748308238078,-500.0,0.00019999,2]
[362455889,1748308238087,-500.0,0.00019999,2]
[362455891,1748308238097,-323.18163944,0.00019999,2]
[362455893,1748308238108,-496.41104483,0.00019999,2]
[362455895,1748308238118,-209.724718,0.0002,2]
[362455897,1748308238128,-209.724718,0.0002,2]
[362455899,1748308238138,-209.724718,0.00020045,2]
[362455901,1748308238147,-209.724718,0.00020547,2]
[362455903,1748308238157,-209.724718,0.00020821,2]
[362455905,1748308238165,-209.724718,0.00021398,2]
[362455907,1748308238175,-209.724718,0.00021917,2]
[362455909,1748308238184,-3193.66155572,0.00022,2]
[362455990,1748308240312,-300.0,0.00019998,2]
[362455992,1748308240322,-209.724718,0.00020045,2]
[362455994,1748308240332,-209.724718,0.00020547,2]
[362455995,1748308240342,-209.724718,0.00020821,2]
[362455997,1748308240352,-209.724718,0.00021398,2]
[362455998,1748308240361,-420.0,0.00021776,2]
[362456001,1748308240371,-209.724718,0.00021917,2]
[362456003,1748308240380,-6108.17330364,0.00022,2]
[362456005,1748308240391,-11449.70235707,0.00022,2]
[362456184,1748308247174,-0.0267008,0.00019999,2]
[362456186,1748308247186,-213.99741868,0.00019999,2]
[362456189,1748308247197,-17343.15717341,0.00022,2]
[362456190,1748308247207,-50.72973922,0.00022,2]
[362456988,1748308393327,152.0,0.00024658,120]
[362456989,1748308414193,152.0,0.00024658,120]
[362456990,1748308739223,531.4536806,0.00021917,30]
[362456991,1748309150090,-253.126978,0.00018286,2]
[362456992,1748309150112,-245.20847896,0.00018315,2]
[362456993,1748309228094,-872.595555,0.00018174,2]
[362456994,1748309228116,-2481.78902523,0.00018315,2]
[362456995,1748309250124,-4003.56376031,0.00018315,2]
[362456996,1748309250147,-300.0,0.00018656,2]
[362456997,1748309250170,-1619.96007087,0.00018657,2]
[362456998,1748309251098,-445.04744455,0.00018657,2]
[362457002,1748309349089,-160.0,0.00016438,3]
[362457003,1748309349111,-698.7410832,0.00018657,2]
[362457004,1748309353095,-77.57971958,0.00018657,2]
[362457005,1748309353118,-150.0,0.00019146,2]
[362457006,1748309353141,-300.0,0.0001917,2]
[362457007,1748309353162,-286.0,0.00019171,2]
[362457008,1748309353183,-300.0,0.00019172,2]
[362457009,1748309353205,-300.0,0.00019176,2]
[362457010,1748309353226,-2407.60065895,0.00019177,2]
[362457011,1748309353248,-500.0,0.00019177,2]
[362457012,1748309353272,-500.0,0.00019177,2]
[362457013,1748309353293,-518.75984322,0.00019177,2]
[362457014,1748309353321,-500.0,0.00019177,2]
[362457015,1748309353344,-500.0,0.00019177,2]
[362457016,1748309353368,-443.13358689,0.00019177,2]
[362457017,1748309353390,-500.0,0.00019177,2]
[362457018,1748309353411,-500.0,0.00019177,2]
[362457019,1748309353432,-500.0,0.00019177,2]
[362457020,1748309353455,-500.0,0.00019177,2]
[362457021,1748309353478,-500.0,0.00019177,2]
[362457022,1748309353499,-222.02929485,0.00019177,2]
[362457023,1748309353521,-430.0,0.00019178,2]
[362457024,1748309353542,-500.0,0.00019178,2]
[362457025,1748309353562,-430.0,0.00019178,2]
[362457026,1748309353584,-430.0,0.00019178,2]
[362457027,1748309353606,-430.0,0.00019178,2]
[362457028,1748309353627,-430.0,0.00019178,2]
[362457029,1748309353650,-430.0,0.00019178,2]
[362457030,1748309353671,-430.0,0.00019178,2]
[362457031,1748309353695,-500.0,0.00019178,2]
[362457032,1748309353717,-430.0,0.00019178,2]
[362457033,1748309353739,-430.0,0.00019178,2]
[362457034,1748309353761,-430.0,0.00019178,2]
[362457035,1748309353784,-430.0,0.00019178,2]
[362457036,1748309353806,-9.52094929,0.00019178,2]
[362457037,1748309356096,-440.47905071,0.00019178,2]
[362457038,1748309356118,-430.0,0.00019178,2]
[362457039,1748309356140,-430.0,0.00019178,2]
[362457040,1748309356164,-430.0,0.00019178,2]
[362457041,1748309356186,-430.0,0.00019178,2]
[362457042,1748309356209,-430.0,0.00019178,2]
[362457043,1748309356233,-430.0,0.00019178,2]
[362457044,1748309356255,-430.0,0.00019178,2]
[362457045,1748309356281,-430.0,0.00019178,2]
[362457046,1748309356302,-430.0,0.00019178,2]
[362457047,1748309356324,-430.0,0.00019178,2]
[362457048,1748309356346,-430.0,0.00019178,2]
[362457049,1748309356369,-430.0,0.00019178,2]
[362457050,1748309356391,-430.0,0.00019178,2]
[362457051,1748309356413,-430.0,0.00019178,2]
[362457052,1748309356434,-430.0,0.00019178,2]
[362457053,1748309356455,-430.0,0.00019178,2]
[362457054,1748309356476,-430.0,0.00019178,2]
[362457055,1748309356496,-430.0,0.00019178,2]
[362457056,1748309356521,-430.0,0.00019178,2]
[362457057,1748309356542,-530.0,0.00019178,2]
[362457058,1748309356563,-430.0,0.00019178,2]
[362457059,1748309356584,-430.0,0.00019178,2]
[362457060,1748309356607,-430.0,0.00019178,2]
[362457061,1748309356629,-553.73,0.00019178,2]
[362457062,1748309356652,-587.3,0.00019178,2]
[362457063,1748309356673,-430.0,0.00019178,2]
[362457064,1748309356695,-430.0,0.00019178,2]
[362457065,1748309356719,-430.0,0.00019178,2]
[362457066,1748309356742,-430.0,0.00019178,2]
[362457067,1748309356765,-430.0,0.00019178,2]
[362457068,1748309356788,-430.0,0.00019178,2]
[362457069,1748309356810,-430.0,0.00019178,2]
[362457070,1748309356832,-430.0,0.00019178,2]
[362457071,1748309356855,-430.0,0.00019178,2]
[362457072,1748309356878,-430.0,0.00019178,2]
[362457073,1748309356900,-376.59177629,0.00019178,2]
[362457074,1748309356923,-430.0,0.00019178,2]
[362457075,1748309356946,-20.16427809,0.00019178,2]
[362457076,1748309369101,-192.78092991,0.00019178,2]
[362457077,1748309379719,1002.1263347,0.00024658,120]
[362457122,1748309432586,-150.3927958,0.00018956,2]
[362457124,1748309432598,-150.0,0.00019147,2]
[362457125,1748309432609,-217.054792,0.00019178,2]
[362457127,1748309432619,-430.0,0.00019178,2]
[362457128,1748309432630,-461.42,0.00019178,2]
[362457129,1748309432640,-410.13613068,0.00019178,2]
[362457130,1748309432650,-430.0,0.00019178,2]
[362457131,1748309432659,-430.0,0.00019178,2]
[362457132,1748309432669,-430.0,0.00019178,2]
[362457133,1748309432679,-470.0,0.00019178,2]
[362457134,1748309432689,-200.38456694,0.00019178,2]
[362457148,1748309438238,-300.0,0.00019177,2]
[362457149,1748309438248,-229.61543306,0.00019178,2]
[362457151,1748309438258,-627.64,0.00019178,2]
[362457152,1748309438268,-430.0,0.00019178,2]
[362457153,1748309438279,-430.0,0.00019178,2]
[362457154,1748309438288,-430.0,0.00019178,2]
[362457155,1748309438298,-430.0,0.00019178,2]
[362457156,1748309438308,-430.0,0.00019178,2]
[362457157,1748309438317,-430.0,0.00019178,2]
[362457158,1748309438327,-430.0,0.00019178,2]
[362457159,1748309438338,-430.0,0.00019178,2]
[362457160,1748309438348,-430.0,0.00019178,2]
[362457161,1748309438357,-430.0,0.00019178,2]
[362457162,1748309438367,-430.0,0.00019178,2]
[362457163,1748309438377,-430.0,0.00019178,2]
[362457164,1748309438386,-430.0,0.00019178,2]
[362457165,1748309438396,-546.6118292,0.00019178,2]
[362457166,1748309438406,-430.0,0.00019178,2]
[362457167,1748309438415,-260.58551641,0.00019178,2]
[362457168,1748309438425,-151.0,0.00019178,2]
[362457169,1748309438435,-430.0,0.00019178,2]
[362457170,1748309438445,-329.84546234,0.00019178,2]
[362457171,1748309438454,-430.0,0.00019178,2]
[362457172,1748309438464,-430.0,0.00019178,2]
[362457173,1748309438473,-430.0,0.00019178,2]
[362457174,1748309438483,-430.0,0.00019178,2]
[362457175,1748309438493,-430.0,0.00019178,2]
[362457176,1748309438502,-430.0,0.00019178,2]
[362457177,1748309438511,-430.0,0.00019178,2]
[362457178,1748309438521,-430.0,0.00019178,2]
[362457179,1748309438531,-430.0,0.00019178,2]
[362457180,1748309438540,-430.0,0.00019178,2]
[362457181,1748309438549,-430.0,0.00019178,2]
[362457182,1748309438559,-430.0,0.00019178,2]
[362457183,1748309438568,-269.61287573,0.00019178,2]
[362457184,1748309438578,-430.0,0.00019178,2]
[362457185,1748309438588,-430.0,0.00019178,2]
[362457186,1748309438598,-430.0,0.00019178,2]
[362457187,1748309438607,-430.0,0.00019178,2]
[362457188,1748309438617,-430.0,0.00019178,2]
[362457189,1748309438631,-430.0,0.00019178,2]
[362457190,1748309438641,-430.0,0.00019178,2]
[362457191,1748309438651,-430.0,0.00019178,2]
[362457192,1748309438660,-456.24410331,0.00019178,2]
[362457193,1748309438669,-430.0,0.00019178,2]
[362457194,1748309438679,-430.0,0.00019178,2]
[362457195,1748309438688,-430.0,0.00019178,2]
[362457196,1748309438698,-430.0,0.00019178,2]
[362457197,1748309438708,-430.0,0.00019178,2]
[362457198,1748309438717,-430.0,0.00019178,2]
[362457199,1748309438731,-430.0,0.00019178,2]
[362457200,1748309438741,-430.0,0.00019178,2]
[362457201,1748309438750,-587.54,0.00019178,2]
[362457202,1748309438760,-495.57936279,0.00019178,2]
[362457203,1748309438772,-449.24550878,0.00019178,2]
[362457204,1748309438781,-408.94967553,0.00019178,2]
[362457205,1748309438791,-430.0,0.00019178,2]
[362457206,1748309438800,-430.0,0.00019178,2]
[362457207,1748309438811,-430.0,0.00019178,2]
[362457208,1748309438821,-430.0,0.00019178,2]
[362457209,1748309438831,-185.475592,0.00019178,2]
[362457210,1748309438841,-614.25751323,0.0001945,2]
[362457211,1748309438850,-430.0,0.00019451,2]
[362457212,1748309438860,-430.0,0.00019451,2]
[362457213,1748309438869,-430.0,0.00019451,2]
[362457214,1748309438879,-373.93040287,0.00019451,2]
[362457215,1748309438888,-430.0,0.00019451,2]
[362457216,1748309438898,-430.0,0.00019451,2]
[362457217,1748309438908,-430.0,0.00019451,2]
[362457218,1748309438917,-430.0,0.00019451,2]
[362457219,1748309438927,-430.0,0.00019451,2]
[362457220,1748309438936,-430.0,0.00019451,2]
[362457221,1748309438946,-430.0,0.00019451,2]
[362457222,1748309438955,-430.0,0.00019451,2]
[362457223,1748309438964,-430.0,0.00019451,2]
[362457224,1748309438975,-430.0,0.00019451,2]
[362457225,1748309438984,-430.0,0.00019451,2]
[362457226,1748309438993,-430.0,0.00019451,2]
[362457227,1748309439003,-430.0,0.00019451,2]
[362457228,1748309439013,-430.0,0.00019451,2]
[362457229,1748309439023,-430.0,0.00019451,2]
[362457230,1748309439032,-59.50134143,0.00019451,2]
[362457231,1748309439046,-370.49865857,0.00019451,2]
[362457232,1748309439055,-430.0,0.00019451,2]
[362457233,1748309439065,-430.0,0.00019451,2]
[362457234,1748309439075,-430.0,0.00019451,2]
[362457235,1748309439085,-430.0,0.00019451,2]
[362457236,1748309439095,-430.0,0.00019451,2]
[362457237,1748309439104,-430.0,0.00019451,2]
[362457238,1748309439114,-430.0,0.00019451,2]
[362457239,1748309439124,-430.0,0.00019451,2]
[362457240,1748309439134,-430.0,0.00019451,2]
[362457241,1748309439143,-378.51345824,0.00019451,2]
[362457242,1748309439153,-430.0,0.00019451,2]
[362457243,1748309439163,-430.0,0.00019451,2]
[362457244,1748309439173,-500.0,0.00019451,2]
[362457245,1748309439182,-430.0,0.00019451,2]
[362457246,1748309439192,-82.93623952,0.00019451,2]
[362457247,1748309439204,-347.06376048,0.00019451,2]
[362457248,1748309439214,-441.04880811,0.00019451,2]
[362457249,1748309439224,-500.0,0.00019451,2]
[362457250,1748309439234,-500.0,0.00019451,2]
[362457251,1748309439244,-413.72430458,0.00019451,2]
[362457252,1748309439256,-224.92647486,0.00019451,2]
[362457253,1748309439265,-207.33329646,0.00019451,2]
[362457254,1748309439275,-500.0,0.00019451,2]
[362457255,1748309439285,-430.0,0.00019452,2]
[362457256,1748309439295,-430.0,0.00019452,2]
[362457257,1748309439305,-184.87,0.00019452,2]
[362457258,1748309439314,-430.0,0.00019452,2]
[362457259,1748309439324,-430.0,0.00019452,2]
[362457260,1748309439335,-430.0,0.00019452,2]
[362457261,1748309439345,-430.0,0.00019452,2]
[362457262,1748309439355,-430.0,0.00019452,2]
[362457263,1748309439365,-430.0,0.00019452,2]
[362457264,1748309439376,-430.0,0.00019452,2]
[362457265,1748309439386,-430.0,0.00019452,2]
[362457266,1748309439396,-430.0,0.00019452,2]
[362457267,1748309439406,-430.0,0.00019452,2]
[362457268,1748309439416,-430.0,0.00019452,2]
[362457269,1748309439426,-430.0,0.00019452,2]
[362457270,1748309439436,-430.0,0.00019452,2]
[362457271,1748309439446,-430.0,0.00019452,2]
[362457272,1748309439456,-430.0,0.00019452,2]
[362457273,1748309439467,-461.42,0.00019452,2]
[362457274,1748309439477,-430.0,0.00019452,2]
[362457275,1748309439487,-430.0,0.00019452,2]
[362457276,1748309439497,-430.0,0.00019452,2]
[362457277,1748309439508,-627.64,0.00019452,2]
[362457278,1748309439518,-430.0,0.00019452,2]
[362457279,1748309439528,-430.0,0.00019452,2]
[362457280,1748309439538,-430.0,0.00019452,2]
[362457281,1748309439548,-430.0,0.00019452,2]
[362457282,1748309439558,-430.0,0.00019452,2]
[362457283,1748309439568,-545.92,0.00019452,2]
[362457284,1748309439578,-430.0,0.00019452,2]
[362457285,1748309439597,-430.0,0.00019452,2]
[362457286,1748309439609,-430.0,0.00019452,2]
[362457287,1748309439618,-430.0,0.00019452,2]
[362457288,1748309439628,-76.31052714,0.00019452,2]
[362457289,1748309439640,-353.68947286,0.00019452,2]
[362457290,1748309439650,-148.22371267,0.00019452,2]
[362457291,1748309439662,-323.55628733,0.00019452,2]
[362457292,1748309439671,-430.0,0.00019452,2]
[362457293,1748309439680,-4.87189207,0.00019452,2]
[362457294,1748309439692,-425.12810793,0.00019452,2]
[362457295,1748309439702,-430.0,0.00019452,2]
[362457296,1748309439711,-430.0,0.00019452,2]
[362457297,1748309439721,-430.0,0.00019452,2]
[362457298,1748309439731,-430.0,0.00019452,2]
[362457300,1748309439741,-430.0,0.00019452,2]
[362457302,1748309439754,-430.0,0.00019452,2]
[362457303,1748309439764,-328.7031303,0.00019452,2]
[362457304,1748309439777,-101.2968697,0.00019452,2]
[362457305,1748309439786,-430.0,0.00019452,2]
[362457306,1748309439796,-430.0,0.00019452,2]
[362457307,1748309439806,-430.0,0.00019452,2]
[362457308,1748309439816,-490.0,0.00019452,2]
[362457309,1748309439828,-430.0,0.00019452,2]
[362457310,1748309439838,-430.0,0.00019452,2]
[362457311,1748309439848,-430.0,0.00019452,2]
[362457312,1748309439858,-430.0,0.00019452,2]
[362457313,1748309439867,-430.0,0.00019452,2]
[362457314,1748309439878,-430.0,0.00019452,2]
[362457315,1748309439887,-430.0,0.00019452,2]
[362457316,1748309439897,-587.54,0.00019452,2]
[362457317,1748309439907,-430.0,0.00019452,2]
[362457318,1748309439916,-458.51429057,0.00019452,2]
[362457319,1748309439925,-430.0,0.00019452,2]
[362457320,1748309439935,-430.0,0.00019452,2]
[362457321,1748309439944,-500.0,0.00019693,2]
[362457322,1748309439954,-500.0,0.00019693,2]
[362457323,1748309439963,-430.0,0.00019725,2]
[362457324,1748309439972,-430.0,0.00019725,2]
[362457325,1748309439982,-430.0,0.00019725,2]
[362457326,1748309439992,-430.0,0.00019725,2]
[362457328,1748309440002,-430.0,0.00019725,2]
[362457331,1748309440012,-430.0,0.00019725,2]
[362457332,1748309440022,-430.0,0.00019725,2]
[362457334,1748309440032,-430.0,0.00019725,2]
[362457335,1748309440041,-430.0,0.00019725,2]
[362457336,1748309440051,-430.0,0.00019725,2]
[362457337,1748309440060,-430.0,0.00019725,2]
[362457338,1748309440070,-219.30412007,0.00019725,2]
[362457339,1748309440080,-430.0,0.00019725,2]
[362457340,1748309440091,-430.0,0.00019725,2]
[362457341,1748309440101,-430.0,0.00019725,2]
[362457342,1748309440111,-430.0,0.00019725,2]
[362457344,1748309440122,-430.0,0.00019725,2]
[362457346,1748309440131,-430.0,0.00019726,2]
[362457348,1748309440142,-430.0,0.00019726,2]
[362457350,1748309440152,-430.0,0.00019726,2]
[362457353,1748309440164,-430.0,0.00019726,2]
[362457355,1748309440174,-528.33,0.00019726,2]
[362457357,1748309440184,-430.0,0.00019726,2]
[362457359,1748309440194,-430.0,0.00019726,2]
[362457361,1748309440204,-411.0955229,0.00019726,2]
[362457363,1748309440214,-461.42,0.00019726,2]
[362457365,1748309440224,-199.91792248,0.00019726,2]
[362457367,1748309440235,-627.64,0.00019726,2]
[362457369,1748309440245,-430.0,0.00019726,2]
[362457371,1748309440258,-430.0,0.00019726,2]
[362457373,1748309440267,-430.0,0.00019726,2]
[362457375,1748309440277,-495.53284221,0.00019726,2]
[362457377,1748309440287,-374.94952823,0.00019726,2]
[362457379,1748309440296,-430.0,0.00019726,2]
[362457381,1748309440305,-430.0,0.00019726,2]
[362457383,1748309440316,-430.0,0.00019726,2]
[362457385,1748309440325,-430.0,0.00019726,2]
[362457387,1748309440336,-430.0,0.00019726,2]
[362457389,1748309440346,-430.0,0.00019726,2]
[362457391,1748309440355,-587.54,0.00019726,2]
[362457393,1748309440366,-430.0,0.00019726,2]
[362457395,1748309440376,-430.0,0.00019726,2]
[362457397,1748309440386,-430.0,0.00019726,2]
[362457414,1748309440532,-78.72265525,0.00019867,2]
[362457432,1748309440693,-175.12013351,0.00019178,2]
[362457434,1748309440703,-421.27734475,0.00019867,2]
[362457436,1748309440713,-645.26748867,0.00019899,2]
[362457438,1748309440724,-500.0,0.00019908,2]
[362457440,1748309440734,-612.0329883,0.00019953,2]
[362457442,1748309440744,-19186.30204477,0.00019997,2]
[362457445,1748309440756,-1770.65900552,0.00019997,2]
[362457447,1748309440768,-707.01143842,0.00019997,2]
[362457449,1748309440780,-1595.04822977,0.00019997,2]
[362457451,1748309440791,-39543.70726321,0.00019997,2]
[362457453,1748309440800,-430.0,0.00019999,2]
[362457455,1748309440810,-430.0,0.00019999,2]
[362457457,1748309440819,-430.0,0.00019999,2]
[362457459,1748309440830,-430.0,0.00019999,2]
[362457461,1748309440840,-430.0,0.00019999,2]
[362457463,1748309440849,-372.21572207,0.00019999,2]
[362457465,1748309440859,-430.0,0.00019999,2]
[362457468,1748309440869,-430.0,0.00019999,2]
[362457470,1748309440879,-430.0,0.00019999,2]
[362457472,1748309440888,-544.53726842,0.00019999,2]
[362457474,1748309440898,-490.0,0.00019999,2]
[362457476,1748309440907,-430.0,0.00019999,2]